[Event "Late-Titled-Tuesday-Blitz-March-19-2024"]
[Site "Chess.com"]
[Date "2024.03.19"]
[Round "2"]
[White "PedroGil25"]
[Black "kleong12"]
[Result "1-0"]
[WhiteElo "2460"]
[BlackElo "2006"]
[TimeControl "180+1"]
[EndTime "14:16:56 PDT"]
[Termination "PedroGil25 won on time"]

1. c4 {[%clk 0:03:00.9]} 1... c6 {[%clk 0:02:58.3]} 2. Nf3 {[%clk 0:02:52.4]}
2... d5 {[%clk 0:02:56.8]} 3. g3 {[%clk 0:02:51.8]} 3... Nf6 {[%clk 0:02:56.9]}
4. Bg2 {[%clk 0:02:46.8]} 4... Bf5 {[%clk 0:02:57.2]} 5. O-O {[%clk 0:02:46.8]}
5... e6 {[%clk 0:02:57.5]} 6. b3 {[%clk 0:02:46.8]} 6... Be7 {[%clk 0:02:56.2]}
7. Bb2 {[%clk 0:02:45.9]} 7... O-O {[%clk 0:02:52.2]} 8. d3 {[%clk 0:02:45.6]}
8... h6 {[%clk 0:02:51]} 9. Nbd2 {[%clk 0:02:33.7]} 9... Nbd7 {[%clk 0:02:44.3]}
10. Rc1 {[%clk 0:02:32.8]} 10... a5 {[%clk 0:02:42.9]} 11. a3 {[%clk 0:02:31.8]}
11... Bh7 {[%clk 0:02:41.5]} 12. Qc2 {[%clk 0:02:31.6]} 12... Re8 {[%clk
0:02:35.8]} 13. Qb1 {[%clk 0:02:31.3]} 13... Bd6 {[%clk 0:02:21.4]} 14. Qa1
{[%clk 0:02:26.5]} 14... Qe7 {[%clk 0:02:19.7]} 15. cxd5 {[%clk 0:02:20.6]}
15... exd5 {[%clk 0:02:18.7]} 16. Rfe1 {[%clk 0:02:20.8]} 16... Ne5 {[%clk
0:02:09.5]} 17. Nxe5 {[%clk 0:02:17.7]} 17... Bxe5 {[%clk 0:02:09.1]} 18. Nf3
{[%clk 0:02:18.3]} 18... Bxb2 {[%clk 0:02:02]} 19. Qxb2 {[%clk 0:02:19.2]} 19...
Qd6 {[%clk 0:01:55.6]} 20. Ra1 {[%clk 0:02:09.5]} 20... Re7 {[%clk 0:01:53.2]}
21. b4 {[%clk 0:02:08.9]} 21... a4 {[%clk 0:01:35.6]} 22. Rac1 {[%clk
0:02:07.7]} 22... Rae8 {[%clk 0:01:32.4]} 23. Nd4 {[%clk 0:02:07.4]} 23... Ng4
{[%clk 0:01:18.1]} 24. Qc3 {[%clk 0:02:05.3]} 24... Qf6 {[%clk 0:01:09.1]} 25.
Rf1 {[%clk 0:01:54.9]} 25... Rxe2 {[%clk 0:00:22.4]} 26. Nxe2 {[%clk 0:01:53.6]}
26... Rxe2 {[%clk 0:00:21.6]} 27. Qxf6 {[%clk 0:01:53.3]} 27... Nxf6 {[%clk
0:00:21.3]} 28. b5 {[%clk 0:01:53]} 28... Bxd3 {[%clk 0:00:15.2]} 29. bxc6
{[%clk 0:01:52.6]} 29... bxc6 {[%clk 0:00:14.7]} 30. Rxc6 {[%clk 0:01:53.5]}
30... Ra2 {[%clk 0:00:12.3]} 31. Rd1 {[%clk 0:01:53.1]} 31... Bc4 {[%clk
0:00:07.6]} 32. Bh3 {[%clk 0:01:43.1]} 32... Rxa3 {[%clk 0:00:04.5]} 33. Bf5
{[%clk 0:01:43.5]} 33... g6 {[%clk 0:00:02.4]} 34. Rxf6 {[%clk 0:01:42.5]} 34...
gxf5 {[%clk 0:00:02.3]} 35. Rxh6 {[%clk 0:01:42.3]} 35... Rb3 {[%clk 0:00:01.8]}
36. Rf6 {[%clk 0:01:30.3]} 36... a3 {[%clk 0:00:01.4]} 37. Rxf5 {[%clk
0:01:30.8]} 37... a2 {[%clk 0:00:01.4]} 38. Re5 {[%clk 0:01:28.2]} 1-0

[Event "Late-Titled-Tuesday-Blitz-March-19-2024"]
[Site "Chess.com"]
[Date "2024.03.19"]
[Round "2"]
[White "Aural1011"]
[Black "MusicCityMaster"]
[Result "0-1"]
[WhiteElo "1779"]
[BlackElo "2450"]
[TimeControl "180+1"]
[EndTime "14:16:58 PDT"]
[Termination "MusicCityMaster won on time"]

1. d4 {[%clk 0:03:00]} 1... Nf6 {[%clk 0:02:59.4]} 2. c4 {[%clk 0:03:00]} 2...
c5 {[%clk 0:02:58.6]} 3. d5 {[%clk 0:03:00.1]} 3... b5 {[%clk 0:02:59.3]} 4.
cxb5 {[%clk 0:03:00.3]} 4... a6 {[%clk 0:03:00]} 5. bxa6 {[%clk 0:03:00.7]} 5...
g6 {[%clk 0:03:00.4]} 6. Nc3 {[%clk 0:03:00.7]} 6... Bg7 {[%clk 0:03:01]} 7. e4
{[%clk 0:03:01]} 7... O-O {[%clk 0:03:01.1]} 8. e5 {[%clk 0:02:43.1]} 8... Ne8
{[%clk 0:03:00]} 9. Nf3 {[%clk 0:02:39.7]} 9... d6 {[%clk 0:02:51]} 10. Bf4
{[%clk 0:02:33.8]} 10... Nd7 {[%clk 0:02:30.3]} 11. exd6 {[%clk 0:02:15.9]}
11... exd6 {[%clk 0:02:28.9]} 12. Bd3 {[%clk 0:02:11.1]} 12... Bxa6 {[%clk
0:02:21.4]} 13. O-O {[%clk 0:02:10.8]} 13... Nb6 {[%clk 0:02:20.8]} 14. Bxa6
{[%clk 0:01:51.8]} 14... Rxa6 {[%clk 0:02:19.7]} 15. Qd3 {[%clk 0:01:52.4]}
15... Nc7 {[%clk 0:02:09.6]} 16. Nd2 {[%clk 0:01:15.4]} 16... c4 {[%clk
0:01:56]} 17. Nxc4 {[%clk 0:01:10.9]} 17... Bxc3 {[%clk 0:01:39]} 18. Nxb6
{[%clk 0:00:49.7]} 18... Bxb2 {[%clk 0:01:28.4]} 19. Nc4 {[%clk 0:00:08.7]}
19... Bxa1 {[%clk 0:01:25.6]} 20. Rxa1 {[%clk 0:00:08.8]} 20... Re8 {[%clk
0:01:15.2]} 21. Qd4 {[%clk 0:00:07.2]} 21... Rxa2 {[%clk 0:01:06]} 22. Rd1
{[%clk 0:00:03.4]} 22... Nb5 {[%clk 0:01:01.6]} 23. Qd3 {[%clk 0:00:02]} 23...
Qe7 {[%clk 0:01:00]} 24. h3 {[%clk 0:00:01.7]} 24... Qe2 {[%clk 0:00:58.6]} 0-1

[Event "Late-Titled-Tuesday-Blitz-March-19-2024"]
[Site "Chess.com"]
[Date "2024.03.19"]
[Round "2"]
[White "NowInChess"]
[Black "steepedgames"]
[Result "0-1"]
[WhiteElo "2277"]
[BlackElo "2523"]
[TimeControl "180+1"]
[EndTime "14:16:59 PDT"]
[Termination "steepedgames won by resignation"]

1. e4 {[%clk 0:03:00.9]} 1... e6 {[%clk 0:02:56.1]} 2. d3 {[%clk 0:03:00.5]}
2... d5 {[%clk 0:02:56.8]} 3. Nd2 {[%clk 0:03:00.8]} 3... Nf6 {[%clk 0:02:56.2]}
4. Ngf3 {[%clk 0:03:00]} 4... Nc6 {[%clk 0:02:56.8]} 5. e5 {[%clk 0:02:54.4]}
5... Nd7 {[%clk 0:02:56.2]} 6. d4 {[%clk 0:02:55]} 6... f6 {[%clk 0:02:52.8]} 7.
Bb5 {[%clk 0:02:49.1]} 7... Be7 {[%clk 0:02:40.7]} 8. O-O {[%clk 0:02:47.5]}
8... O-O {[%clk 0:02:40.4]} 9. exf6 {[%clk 0:02:47.6]} 9... Bxf6 {[%clk
0:02:39.6]} 10. Re1 {[%clk 0:02:48.2]} 10... Re8 {[%clk 0:02:30.9]} 11. c3
{[%clk 0:02:42.8]} 11... a6 {[%clk 0:02:24.3]} 12. Bd3 {[%clk 0:02:41.3]} 12...
e5 {[%clk 0:02:24.2]} 13. dxe5 {[%clk 0:02:41.5]} 13... Ndxe5 {[%clk 0:02:23.9]}
14. Bc2 {[%clk 0:02:37.5]} 14... Bg4 {[%clk 0:02:12.7]} 15. Kf1 {[%clk
0:01:59.4]} 15... Qd7 {[%clk 0:01:56.7]} 16. Nxe5 {[%clk 0:01:45]} 16... Nxe5
{[%clk 0:01:46.7]} 17. f3 {[%clk 0:01:44.7]} 17... Bh5 {[%clk 0:01:29.8]} 18.
Nb3 {[%clk 0:01:42.6]} 18... Nxf3 {[%clk 0:01:21.6]} 19. Rxe8+ {[%clk 0:00:28]}
19... Rxe8 {[%clk 0:01:22.5]} 20. Kf2 {[%clk 0:00:11.9]} 20... Bh4+ {[%clk
0:00:57.9]} 21. g3 {[%clk 0:00:10.3]} 21... Rf8 {[%clk 0:00:56.4]} 22. Kg2
{[%clk 0:00:07]} 22... Bxg3 {[%clk 0:00:51.9]} 23. Qd3 {[%clk 0:00:07]} 23...
Ne1+ {[%clk 0:00:46.8]} 0-1

[Event "Late-Titled-Tuesday-Blitz-March-19-2024"]
[Site "Chess.com"]
[Date "2024.03.19"]
[Round "2"]
[White "martinmena"]
[Black "maksimys18"]
[Result "0-1"]
[WhiteElo "2252"]
[BlackElo "2509"]
[TimeControl "180+1"]
[EndTime "14:17:02 PDT"]
[Termination "maksimys18 won by resignation"]

1. c4 {[%clk 0:02:57.2]} 1... e6 {[%clk 0:03:00.4]} 2. g3 {[%clk 0:02:56.8]}
2... d5 {[%clk 0:03:00.7]} 3. Bg2 {[%clk 0:02:57.2]} 3... Nf6 {[%clk 0:03:00.3]}
4. Nf3 {[%clk 0:02:57.8]} 4... Be7 {[%clk 0:03:00.3]} 5. O-O {[%clk 0:02:58.3]}
5... O-O {[%clk 0:03:00.5]} 6. d4 {[%clk 0:02:57]} 6... b6 {[%clk 0:02:59.5]} 7.
b3 {[%clk 0:02:52.1]} 7... Bb7 {[%clk 0:02:59.3]} 8. Nc3 {[%clk 0:02:50.2]} 8...
dxc4 {[%clk 0:02:59.2]} 9. bxc4 {[%clk 0:02:49.9]} 9... c5 {[%clk 0:02:59.2]}
10. Bg5 {[%clk 0:02:43]} 10... cxd4 {[%clk 0:02:58.3]} 11. Qxd4 {[%clk
0:02:38.8]} 11... Qxd4 {[%clk 0:02:56.4]} 12. Nxd4 {[%clk 0:02:39.7]} 12... Bxg2
{[%clk 0:02:56.3]} 13. Kxg2 {[%clk 0:02:39.7]} 13... h6 {[%clk 0:02:56.5]} 14.
Bxf6 {[%clk 0:02:26.1]} 14... Bxf6 {[%clk 0:02:57.4]} 15. e3 {[%clk 0:02:26.7]}
15... Nd7 {[%clk 0:02:56.3]} 16. Rac1 {[%clk 0:02:25.3]} 16... Rac8 {[%clk
0:02:55.1]} 17. Ncb5 {[%clk 0:02:25.2]} 17... a6 {[%clk 0:02:51.2]} 18. Nd6
{[%clk 0:02:23]} 18... Rc7 {[%clk 0:02:50.7]} 19. Ne4 {[%clk 0:02:22.8]} 19...
Rfc8 {[%clk 0:02:47.7]} 20. Nxf6+ {[%clk 0:02:10.9]} 20... Nxf6 {[%clk
0:02:47.5]} 21. Rb1 {[%clk 0:02:06.5]} 21... Nd7 {[%clk 0:02:46.5]} 22. Rfd1
{[%clk 0:02:06.5]} 22... Kf8 {[%clk 0:02:30.1]} 23. Rb4 {[%clk 0:01:30.2]} 23...
Ke7 {[%clk 0:02:26.4]} 24. Rc1 {[%clk 0:00:48.1]} 24... a5 {[%clk 0:02:25.9]}
25. Ra4 {[%clk 0:00:41.1]} 25... Nc5 {[%clk 0:02:25.3]} 26. Ra3 {[%clk
0:00:39.9]} 26... Nd7 {[%clk 0:02:13.7]} 27. Rac3 {[%clk 0:00:38]} 27... Ne5
{[%clk 0:02:11.3]} 28. c5 {[%clk 0:00:33.5]} 28... Rxc5 {[%clk 0:02:09.9]} 29.
Rxc5 {[%clk 0:00:32.9]} 29... Rxc5 {[%clk 0:02:10.8]} 30. Rxc5 {[%clk
0:00:33.2]} 30... bxc5 {[%clk 0:02:10.7]} 31. Nb3 {[%clk 0:00:33.6]} 31... c4
{[%clk 0:02:04.4]} 32. Nxa5 {[%clk 0:00:32.8]} 32... c3 {[%clk 0:02:02.6]} 33.
Nb3 {[%clk 0:00:29.1]} 33... Nd3 {[%clk 0:01:57.4]} 34. Nd4 {[%clk 0:00:19.5]}
34... Ne1+ {[%clk 0:01:48.3]} 35. Kf1 {[%clk 0:00:18.5]} 35... c2 {[%clk
0:01:47.8]} 36. Nb3 {[%clk 0:00:05.9]} 36... Nd3 {[%clk 0:01:46.9]} 37. Ke2
{[%clk 0:00:04.1]} 37... c1=Q {[%clk 0:01:45.3]} 38. Nxc1 {[%clk 0:00:03.3]}
38... Nxc1+ {[%clk 0:01:45.8]} 39. Kd2 {[%clk 0:00:03.6]} 39... Nxa2 {[%clk
0:01:44.9]} 40. Kd3 {[%clk 0:00:04]} 40... Nb4+ {[%clk 0:01:43.4]} 41. Kc4
{[%clk 0:00:04.3]} 41... Nc6 {[%clk 0:01:43.8]} 0-1

[Event "Late-Titled-Tuesday-Blitz-March-19-2024"]
[Site "Chess.com"]
[Date "2024.03.19"]
[Round "2"]
[White "Evandro_Barbosa"]
[Black "Heinza9"]
[Result "1-0"]
[WhiteElo "2719"]
[BlackElo "2324"]
[TimeControl "180+1"]
[EndTime "14:17:03 PDT"]
[Termination "Evandro_Barbosa won by resignation"]

1. e4 {[%clk 0:03:00.9]} 1... e6 {[%clk 0:02:59.5]} 2. d3 {[%clk 0:03:00.5]}
2... d5 {[%clk 0:02:59.4]} 3. Qe2 {[%clk 0:03:01.1]} 3... Be7 {[%clk 0:02:52.9]}
4. Nf3 {[%clk 0:03:01.6]} 4... Nf6 {[%clk 0:02:51.3]} 5. g3 {[%clk 0:03:02.3]}
5... c5 {[%clk 0:02:50.7]} 6. Bg2 {[%clk 0:03:02.8]} 6... Nc6 {[%clk 0:02:51]}
7. O-O {[%clk 0:03:03.4]} 7... b6 {[%clk 0:02:51.3]} 8. e5 {[%clk 0:03:03.2]}
8... Nd7 {[%clk 0:02:50.9]} 9. c4 {[%clk 0:03:03.9]} 9... d4 {[%clk 0:02:37.4]}
10. Nfd2 {[%clk 0:03:04.4]} 10... Bb7 {[%clk 0:02:35.5]} 11. f4 {[%clk
0:03:04.7]} 11... Qc7 {[%clk 0:02:32.6]} 12. Ne4 {[%clk 0:03:05.3]} 12... O-O
{[%clk 0:02:28.2]} 13. Nbd2 {[%clk 0:03:03.1]} 13... Rae8 {[%clk 0:02:15.7]} 14.
Nf3 {[%clk 0:03:03.1]} 14... h6 {[%clk 0:02:14.5]} 15. Bd2 {[%clk 0:03:02]}
15... a6 {[%clk 0:02:09.7]} 16. a3 {[%clk 0:03:01.6]} 16... f5 {[%clk
0:02:07.3]} 17. exf6 {[%clk 0:03:00.6]} 17... Nxf6 {[%clk 0:02:05.2]} 18. Rae1
{[%clk 0:02:58.7]} 18... b5 {[%clk 0:01:42.3]} 19. b3 {[%clk 0:02:57.2]} 19...
Kh8 {[%clk 0:01:37.4]} 20. Kh1 {[%clk 0:02:55.4]} 20... Nxe4 {[%clk 0:01:24.2]}
21. Qxe4 {[%clk 0:02:52.6]} 21... Nb4 {[%clk 0:01:15.4]} 22. Qe2 {[%clk
0:02:52.2]} 22... Nc2 {[%clk 0:01:14.7]} 23. Rc1 {[%clk 0:02:48.8]} 23... Nxa3
{[%clk 0:01:15.2]} 24. Ne5 {[%clk 0:02:48.3]} 24... Bxg2+ {[%clk 0:01:02.1]} 25.
Qxg2 {[%clk 0:02:49.2]} 25... Kg8 {[%clk 0:01:02.3]} 26. Qe4 {[%clk 0:02:43.8]}
26... Bd6 {[%clk 0:00:55.5]} 27. Ng6 {[%clk 0:02:42.8]} 27... Rf6 {[%clk
0:00:53.3]} 28. Kg1 {[%clk 0:02:30.9]} 28... b4 {[%clk 0:00:48.4]} 29. f5 {[%clk
0:02:24.8]} 29... Qf7 {[%clk 0:00:42.3]} 30. Nh4 {[%clk 0:01:57.6]} 30... exf5
{[%clk 0:00:41.6]} 31. Qf3 {[%clk 0:01:50.4]} 31... f4 {[%clk 0:00:36.6]} 32. g4
{[%clk 0:01:48.4]} 32... Bb8 {[%clk 0:00:17.7]} 33. Nf5 {[%clk 0:01:47.5]} 33...
Kh7 {[%clk 0:00:17.6]} 34. Kh1 {[%clk 0:01:42.6]} 34... Rxf5 {[%clk 0:00:17.4]}
35. gxf5 {[%clk 0:01:42.5]} 35... Qxf5 {[%clk 0:00:18.3]} 36. Rg1 {[%clk
0:01:41]} 36... g5 {[%clk 0:00:17.8]} 37. Rce1 {[%clk 0:01:36.2]} 37... Qf7
{[%clk 0:00:16.6]} 38. Qc6 {[%clk 0:01:30.4]} 38... Rxe1 {[%clk 0:00:15.2]} 39.
Rxe1 {[%clk 0:01:30.1]} 39... Nc2 {[%clk 0:00:15.8]} 40. Re8 {[%clk 0:01:25.4]}
40... f3 {[%clk 0:00:11.1]} 41. Qe4+ {[%clk 0:01:23.6]} 41... Qg6 {[%clk
0:00:08.3]} 42. Re7+ {[%clk 0:01:22.7]} 1-0

[Event "Late-Titled-Tuesday-Blitz-March-19-2024"]
[Site "Chess.com"]
[Date "2024.03.19"]
[Round "2"]
[White "AungTZ"]
[Black "balack95"]
[Result "0-1"]
[WhiteElo "2040"]
[BlackElo "2465"]
[TimeControl "180+1"]
[EndTime "14:17:03 PDT"]
[Termination "balack95 won on time"]

1. e4 {[%clk 0:02:59.2]} 1... c5 {[%clk 0:03:00.1]} 2. Nf3 {[%clk 0:02:59.1]}
2... e6 {[%clk 0:03:00.7]} 3. d4 {[%clk 0:02:58.8]} 3... cxd4 {[%clk 0:03:01.6]}
4. Nxd4 {[%clk 0:02:58.8]} 4... Nc6 {[%clk 0:03:02.2]} 5. Nc3 {[%clk 0:02:57.6]}
5... Qc7 {[%clk 0:03:02.2]} 6. Be3 {[%clk 0:02:52.5]} 6... a6 {[%clk 0:03:01.8]}
7. Bd3 {[%clk 0:02:51.9]} 7... b5 {[%clk 0:03:01.1]} 8. a3 {[%clk 0:02:51.8]}
8... Bb7 {[%clk 0:03:00.8]} 9. O-O {[%clk 0:02:51.1]} 9... Nf6 {[%clk
0:02:59.8]} 10. Kh1 {[%clk 0:02:41.4]} 10... Nxd4 {[%clk 0:02:58.5]} 11. Bxd4
{[%clk 0:02:41]} 11... e5 {[%clk 0:02:59.1]} 12. Be3 {[%clk 0:02:38.5]} 12...
Bc5 {[%clk 0:02:57.5]} 13. Bg5 {[%clk 0:02:26.7]} 13... Be7 {[%clk 0:02:45.4]}
14. Bxf6 {[%clk 0:02:19.7]} 14... Bxf6 {[%clk 0:02:44.7]} 15. Qe2 {[%clk
0:02:01.9]} 15... O-O {[%clk 0:02:43.5]} 16. Rad1 {[%clk 0:01:59]} 16... g6
{[%clk 0:02:40.7]} 17. Nb1 {[%clk 0:01:49.7]} 17... Rad8 {[%clk 0:02:31.6]} 18.
c3 {[%clk 0:01:43.5]} 18... Bg7 {[%clk 0:02:29.9]} 19. Nd2 {[%clk 0:01:39.3]}
19... d5 {[%clk 0:02:19.5]} 20. f3 {[%clk 0:01:39]} 20... d4 {[%clk 0:02:13.1]}
21. cxd4 {[%clk 0:01:32.6]} 21... exd4 {[%clk 0:02:09.5]} 22. Rc1 {[%clk
0:01:29.2]} 22... Qf4 {[%clk 0:02:07.9]} 23. g3 {[%clk 0:01:22.7]} 23... Qb8
{[%clk 0:02:06.4]} 24. Rc5 {[%clk 0:01:13.1]} 24... f5 {[%clk 0:02:01]} 25. exf5
{[%clk 0:00:58.8]} 25... gxf5 {[%clk 0:01:53.8]} 26. Qe6+ {[%clk 0:00:43.8]}
26... Kh8 {[%clk 0:01:52.7]} 27. Rxf5 {[%clk 0:00:43.2]} 27... Rfe8 {[%clk
0:01:46.9]} 28. Qf7 {[%clk 0:00:30.8]} 28... Rf8 {[%clk 0:01:39.7]} 29. Qh5
{[%clk 0:00:30.3]} 29... h6 {[%clk 0:01:20.6]} 30. Qg6 {[%clk 0:00:19.7]} 30...
Qc7 {[%clk 0:01:14.3]} 31. Rxf8+ {[%clk 0:00:17.1]} 31... Bxf8 {[%clk
0:01:13.4]} 32. Re1 {[%clk 0:00:05.2]} 32... Qg7 {[%clk 0:01:13.4]} 0-1

[Event "Late-Titled-Tuesday-Blitz-March-19-2024"]
[Site "Chess.com"]
[Date "2024.03.19"]
[Round "2"]
[White "NikoTheodorou"]
[Black "JosephRyan"]
[Result "1-0"]
[WhiteElo "3096"]
[BlackElo "2259"]
[TimeControl "180+1"]
[EndTime "14:17:08 PDT"]
[Termination "NikoTheodorou won by resignation"]

1. Nf3 {[%clk 0:02:59.8]} 1... d5 {[%clk 0:02:58.7]} 2. b3 {[%clk 0:02:59.7]}
2... Nf6 {[%clk 0:02:57.7]} 3. Bb2 {[%clk 0:03:00.3]} 3... Bf5 {[%clk
0:02:56.5]} 4. g3 {[%clk 0:02:59.9]} 4... e6 {[%clk 0:02:56.6]} 5. Bg2 {[%clk
0:03:00.5]} 5... Be7 {[%clk 0:02:56.6]} 6. O-O {[%clk 0:03:00.9]} 6... O-O
{[%clk 0:02:56.2]} 7. d3 {[%clk 0:03:01.6]} 7... h6 {[%clk 0:02:54.2]} 8. Nc3
{[%clk 0:03:02]} 8... c5 {[%clk 0:02:54.1]} 9. e4 {[%clk 0:03:01.6]} 9... Bh7
{[%clk 0:02:49.6]} 10. exd5 {[%clk 0:02:57.7]} 10... exd5 {[%clk 0:02:47.9]} 11.
Ne5 {[%clk 0:02:58.2]} 11... Nc6 {[%clk 0:02:42.8]} 12. Nxc6 {[%clk 0:02:58.4]}
12... bxc6 {[%clk 0:02:42.7]} 13. Re1 {[%clk 0:02:59.3]} 13... Bd6 {[%clk
0:02:35.2]} 14. Na4 {[%clk 0:02:56]} 14... Re8 {[%clk 0:02:33]} 15. Qf3 {[%clk
0:02:53.9]} 15... Nd7 {[%clk 0:02:15.6]} 16. Rxe8+ {[%clk 0:01:58.7]} 16... Qxe8
{[%clk 0:02:14.8]} 17. Qg4 {[%clk 0:01:50.5]} 17... f6 {[%clk 0:01:46.4]} 18. f4
{[%clk 0:01:43]} 18... Qf7 {[%clk 0:01:24.5]} 19. Re1 {[%clk 0:01:36.9]} 19...
Re8 {[%clk 0:01:22.8]} 20. Qd1 {[%clk 0:01:34.2]} 20... Rxe1+ {[%clk 0:01:20.5]}
21. Qxe1 {[%clk 0:01:35.1]} 21... Qe7 {[%clk 0:01:19.3]} 22. Qxe7 {[%clk
0:01:27.8]} 22... Bxe7 {[%clk 0:01:20.2]} 23. Bh3 {[%clk 0:01:28.3]} 23... Nb6
{[%clk 0:01:10.8]} 24. Nxb6 {[%clk 0:01:28.4]} 24... axb6 {[%clk 0:01:11]} 25.
Bd7 {[%clk 0:01:29.3]} 25... c4 {[%clk 0:01:04.9]} 26. Bxc6 {[%clk 0:01:25]}
26... cxd3 {[%clk 0:01:02.9]} 27. Bxd5+ {[%clk 0:01:25.2]} 27... Kf8 {[%clk
0:01:02.8]} 28. cxd3 {[%clk 0:01:25.5]} 28... Bxd3 {[%clk 0:01:02.1]} 29. Kf2
{[%clk 0:01:25.2]} 29... Bc5+ {[%clk 0:01:01.9]} 30. Kf3 {[%clk 0:01:25.9]}
30... Ke7 {[%clk 0:00:59]} 31. g4 {[%clk 0:01:25]} 31... Kd6 {[%clk 0:00:57.6]}
32. Be4 {[%clk 0:01:24.4]} 32... Ba6 {[%clk 0:00:56]} 33. h4 {[%clk 0:01:24.4]}
33... b5 {[%clk 0:00:52.2]} 34. g5 {[%clk 0:01:22.6]} 34... hxg5 {[%clk
0:00:51.8]} 35. fxg5 {[%clk 0:01:23.5]} 35... fxg5 {[%clk 0:00:51.3]} 36. hxg5
{[%clk 0:01:24.4]} 36... Ke6 {[%clk 0:00:24.5]} 37. Bxg7 {[%clk 0:01:23.9]}
37... b4 {[%clk 0:00:21.8]} 38. g6 {[%clk 0:01:21.1]} 38... Bb5 {[%clk 0:00:20]}
39. Bb2 {[%clk 0:01:18.7]} 39... Be8 {[%clk 0:00:18.5]} 40. g7 {[%clk
0:01:14.6]} 40... Bf7 {[%clk 0:00:15.6]} 41. Bh7 {[%clk 0:01:14.8]} 41... Bd4
{[%clk 0:00:11.2]} 42. Bxd4 {[%clk 0:01:11.2]} 1-0

[Event "Late-Titled-Tuesday-Blitz-March-19-2024"]
[Site "Chess.com"]
[Date "2024.03.19"]
[Round "2"]
[White "mitrabhaa"]
[Black "newyorkmouse"]
[Result "1-0"]
[WhiteElo "3057"]
[BlackElo "2655"]
[TimeControl "180+1"]
[EndTime "14:17:12 PDT"]
[Termination "mitrabhaa won by resignation"]

1. Nf3 {[%clk 0:03:00.9]} 1... c5 {[%clk 0:02:59.7]} 2. c3 {[%clk 0:03:01.1]}
2... b6 {[%clk 0:02:54.3]} 3. d4 {[%clk 0:03:02]} 3... Bb7 {[%clk 0:02:54.5]} 4.
d5 {[%clk 0:03:02]} 4... Nf6 {[%clk 0:02:53.7]} 5. c4 {[%clk 0:03:02.2]} 5... e6
{[%clk 0:02:54.1]} 6. Nc3 {[%clk 0:03:02.7]} 6... exd5 {[%clk 0:02:54.7]} 7.
cxd5 {[%clk 0:03:03.6]} 7... d6 {[%clk 0:02:55.3]} 8. e4 {[%clk 0:03:04.2]} 8...
g6 {[%clk 0:02:54.9]} 9. Bf4 {[%clk 0:03:02.4]} 9... Bg7 {[%clk 0:02:54.5]} 10.
Bb5+ {[%clk 0:03:02.4]} 10... Kf8 {[%clk 0:02:41.5]} 11. h3 {[%clk 0:02:53.3]}
11... a6 {[%clk 0:02:37.7]} 12. Bd3 {[%clk 0:02:53.2]} 12... b5 {[%clk
0:02:37.6]} 13. O-O {[%clk 0:02:53.1]} 13... h6 {[%clk 0:02:33.9]} 14. a4 {[%clk
0:02:27.2]} 14... b4 {[%clk 0:02:28.8]} 15. Ne2 {[%clk 0:02:27.7]} 15... Kg8
{[%clk 0:02:28.3]} 16. Nd2 {[%clk 0:02:24.7]} 16... Nh5 {[%clk 0:02:19.4]} 17.
Bh2 {[%clk 0:02:20.5]} 17... Bxb2 {[%clk 0:02:18.1]} 18. Ra2 {[%clk 0:02:14.5]}
18... Bg7 {[%clk 0:02:13.5]} 19. Nc4 {[%clk 0:02:15]} 19... Bf8 {[%clk
0:02:13.8]} 20. a5 {[%clk 0:02:05.4]} 20... Bc8 {[%clk 0:02:06.3]} 21. e5 {[%clk
0:02:00.3]} 21... dxe5 {[%clk 0:02:02.2]} 22. Nb6 {[%clk 0:01:59.2]} 22... Bb7
{[%clk 0:01:53]} 23. Bxe5 {[%clk 0:01:57.1]} 23... Bg7 {[%clk 0:01:49.2]} 24.
Bxg7 {[%clk 0:01:55.9]} 24... Nxg7 {[%clk 0:01:50.1]} 25. Nxa8 {[%clk
0:01:55.2]} 25... Qxd5 {[%clk 0:01:48.5]} 26. Nf4 {[%clk 0:01:44.2]} 26... Qxa2
{[%clk 0:01:47]} 27. Nb6 {[%clk 0:01:35.1]} 27... Ne6 {[%clk 0:01:36.5]} 28. Bc4
{[%clk 0:01:33.2]} 28... Qxa5 {[%clk 0:01:33.5]} 29. Qd6 {[%clk 0:01:29.4]}
29... Nc6 {[%clk 0:01:05.2]} 30. Bxe6 {[%clk 0:01:26.7]} 30... Qxb6 {[%clk
0:01:03.3]} 31. Bxf7+ {[%clk 0:01:26.7]} 31... Kxf7 {[%clk 0:01:03.3]} 32. Qxg6+
{[%clk 0:01:26.3]} 32... Kf8 {[%clk 0:01:02]} 33. Re1 {[%clk 0:01:22.2]} 33...
Qd8 {[%clk 0:00:39.8]} 34. Ne6+ {[%clk 0:01:21.7]} 34... Ke7 {[%clk 0:00:40.7]}
35. Nxd8+ {[%clk 0:01:21.8]} 35... Kxd8 {[%clk 0:00:41.6]} 36. Qf6+ {[%clk
0:01:22.1]} 36... Kc7 {[%clk 0:00:42.2]} 37. Qxh8 {[%clk 0:01:22.5]} 37... a5
{[%clk 0:00:42.8]} 38. Qxh6 {[%clk 0:01:21.6]} 38... a4 {[%clk 0:00:43.1]} 39.
Qg7+ {[%clk 0:01:22.3]} 39... Kb6 {[%clk 0:00:42.7]} 40. h4 {[%clk 0:01:22.9]}
40... a3 {[%clk 0:00:39.8]} 41. h5 {[%clk 0:01:23.3]} 41... Nd4 {[%clk
0:00:38.4]} 42. h6 {[%clk 0:01:20.7]} 42... a2 {[%clk 0:00:36.2]} 43. h7 {[%clk
0:01:20.1]} 43... b3 {[%clk 0:00:36.2]} 44. h8=Q {[%clk 0:01:19.9]} 44... b2
{[%clk 0:00:36.7]} 45. Qd8+ {[%clk 0:01:20]} 45... Ka6 {[%clk 0:00:32.2]} 46.
Qd6+ {[%clk 0:01:19.9]} 46... Bc6 {[%clk 0:00:30.7]} 47. Qxc6+ {[%clk
0:01:17.4]} 47... Nxc6 {[%clk 0:00:30.5]} 48. Qxb2 {[%clk 0:01:18.1]} 48... c4
{[%clk 0:00:30.4]} 49. Ra1 {[%clk 0:01:17.4]} 49... Nb4 {[%clk 0:00:27.5]} 50.
Qxb4 {[%clk 0:01:17]} 1-0